[Event "Late Titled Tuesday Blitz February 8 2022"]
[White "Kosakowski, Jakub"]
[Black "Fishbein, Alexander"]
[WhiteFideId "1185080"]
[BlackFideId "2000377"]
[WhiteElo "2476"]
[BlackElo "2442"]
[Result "1-0"]
[Round "10"]
[TimeControl "180+1"]
[Date "2022.02.08"]
[WhiteClock "0:00:27"]
[BlackClock "0:00:04"]

1. e4 {[%clk 0:02:58]}  c5 {[%clk 0:02:58]} 2. Nf3 {[%clk 0:02:57]}  d6 {[%clk 0:02:59]} 3. d4 {[%clk 0:02:57]}  cxd4 {[%clk 0:02:59]} 4. Nxd4 {[%clk 0:02:57]}  Nf6 {[%clk 0:03:00]} 5. Nc3 {[%clk 0:02:58]}  Nc6 {[%clk 0:03:00]} 6. Bg5 {[%clk 0:02:57]}  e6 {[%clk 0:03:00]} 7. Qd3 {[%clk 0:02:57]}  Be7 {[%clk 0:02:59]} 8. O-O-O {[%clk 0:02:57]}  O-O {[%clk 0:02:59]} 9. h4 {[%clk 0:02:57]}  Nxd4 {[%clk 0:02:53]} 10. Qxd4 {[%clk 0:02:57]}  a6 {[%clk 0:02:53]} 11. f4 {[%clk 0:02:52]}  b5 {[%clk 0:02:31]} 12. e5 {[%clk 0:02:37]}  dxe5 {[%clk 0:02:29]} 13. Qxe5 {[%clk 0:02:23]}  Qb6 {[%clk 0:02:23]} 14. Bd3 {[%clk 0:02:19]}  Bb7 {[%clk 0:02:15]} 15. Kb1 {[%clk 0:02:10]}  Rac8 {[%clk 0:02:10]} 16. Ne4 {[%clk 0:01:46]}  Bxe4 {[%clk 0:01:52]} 17. Bxe4 {[%clk 0:01:45]}  Rc5 {[%clk 0:01:46]} 18. Qd4 {[%clk 0:01:41]}  Rd8 {[%clk 0:01:43]} 19. Qe3 {[%clk 0:01:40]}  Rxd1+ {[%clk 0:01:32]} 20. Rxd1 {[%clk 0:01:41]}  Rd5 {[%clk 0:01:27]} 21. Qe1 {[%clk 0:01:21]}  Nxe4 {[%clk 0:01:18]} 22. Bxe7 {[%clk 0:01:20]}  Qf2 {[%clk 0:01:10]} 23. a3 {[%clk 0:01:09]}  Qxf4 {[%clk 0:00:56]} 24. Rxd5 {[%clk 0:01:03]}  exd5 {[%clk 0:00:56]} 25. Ka2 {[%clk 0:00:45]}  h6 {[%clk 0:00:54]} 26. Qa5 {[%clk 0:00:44]}  Qe5 {[%clk 0:00:48]} 27. Bb4 {[%clk 0:00:41]}  Qe6 {[%clk 0:00:46]} 28. Qc7 {[%clk 0:00:40]}  Kh7 {[%clk 0:00:39]} 29. b3 {[%clk 0:00:40]}  Qg6 {[%clk 0:00:34]} 30. Kb2 {[%clk 0:00:35]}  Nf6 {[%clk 0:00:29]} 31. Bc3 {[%clk 0:00:29]}  Ne4 {[%clk 0:00:27]} 32. Bd4 {[%clk 0:00:29]}  h5 {[%clk 0:00:25]} 33. Qe5 {[%clk 0:00:26]}  Nf6 {[%clk 0:00:21]} 34. g3 {[%clk 0:00:25]}  Qe4 {[%clk 0:00:16]} 35. Kc3 {[%clk 0:00:25]}  Qf3+ {[%clk 0:00:14]} 36. Kb4 {[%clk 0:00:25]}  Qe4 {[%clk 0:00:07]} 37. Ka5 {[%clk 0:00:25]}  Qxe5 {[%clk 0:00:07]} 38. Bxe5 {[%clk 0:00:24]}  Nd7 {[%clk 0:00:05]} 39. Bd4 {[%clk 0:00:24]}  Nb8 {[%clk 0:00:03]} 40. Kb6 {[%clk 0:00:24]}  f6 {[%clk 0:00:02]} 41. Kb7 {[%clk 0:00:24]}  Nd7 {[%clk 0:00:02]} 42. Kxa6 {[%clk 0:00:25]}  g5 {[%clk 0:00:02]} 43. Kxb5 {[%clk 0:00:25]}  gxh4 {[%clk 0:00:02]} 44. gxh4 {[%clk 0:00:25]}  Kg6 {[%clk 0:00:02]} 45. a4 {[%clk 0:00:26]}  Kf5 {[%clk 0:00:03]} 46. a5 {[%clk 0:00:26]}  Ke4 {[%clk 0:00:03]} 47. c3 {[%clk 0:00:27]}  f5 {[%clk 0:00:03]} 48. a6 {[%clk 0:00:27]}  f4 {[%clk 0:00:04]} 49. a7 {[%clk 0:00:27]} 1-0


[Site "https://www.chess.com"]

[Event "Late Titled Tuesday Blitz February 8 2022"]
[White "Krstulovic, Alex"]
[Black "Lin, Dachey"]
[WhiteFideId "760056"]
[BlackFideId "2029650"]
[WhiteElo "2193"]
[BlackElo "2726"]
[Result "0-1"]
[Round "10"]
[TimeControl "180+1"]
[Date "2022.02.08"]
[WhiteClock "0:00:14"]
[BlackClock "0:00:17"]

1. e4 {[%clk 0:03:00]}  g5 {[%clk 0:02:59]} 2. a4 {[%clk 0:02:56]}  Bg7 {[%clk 0:02:53]} 3. Nc3 {[%clk 0:02:55]}  d6 {[%clk 0:02:44]} 4. d4 {[%clk 0:02:55]}  Nc6 {[%clk 0:02:41]} 5. Bb5 {[%clk 0:02:54]}  Bd7 {[%clk 0:02:40]} 6. Bxc6 {[%clk 0:02:53]}  Bxc6 {[%clk 0:02:40]} 7. Bxg5 {[%clk 0:02:53]}  Nf6 {[%clk 0:02:40]} 8. Bxf6 {[%clk 0:02:50]}  Bxf6 {[%clk 0:02:40]} 9. Nf3 {[%clk 0:02:51]}  Rg8 {[%clk 0:02:40]} 10. O-O {[%clk 0:02:50]}  Bd7 {[%clk 0:02:39]} 11. Kh1 {[%clk 0:02:50]}  c6 {[%clk 0:02:36]} 12. e5 {[%clk 0:02:49]}  dxe5 {[%clk 0:02:26]} 13. dxe5 {[%clk 0:02:50]}  Bg7 {[%clk 0:02:26]} 14. Qd3 {[%clk 0:02:50]}  Qc7 {[%clk 0:02:24]} 15. Rad1 {[%clk 0:02:33]}  O-O-O {[%clk 0:02:23]} 16. Qe4 {[%clk 0:02:25]}  h5 {[%clk 0:02:18]} 17. h3 {[%clk 0:02:13]}  Rdf8 {[%clk 0:02:07]} 18. Rfe1 {[%clk 0:02:01]}  Bh6 {[%clk 0:02:04]} 19. Qh4 {[%clk 0:01:56]}  Bg4 {[%clk 0:01:29]} 20. hxg4 {[%clk 0:01:47]}  hxg4 {[%clk 0:01:29]} 21. Nd4 {[%clk 0:01:45]}  Bf4 {[%clk 0:01:27]} 22. Kg1 {[%clk 0:01:21]}  Bxe5 {[%clk 0:01:24]} 23. Nf5 {[%clk 0:00:59]}  f6 {[%clk 0:01:04]} 24. Qh7 {[%clk 0:00:47]}  Re8 {[%clk 0:00:55]} 25. Qf7 {[%clk 0:00:47]}  Kb8 {[%clk 0:00:55]} 26. Qe6 {[%clk 0:00:43]}  Rh8 {[%clk 0:00:49]} 27. Rd7 {[%clk 0:00:43]}  Qb6 {[%clk 0:00:41]} 28. Nxe7 {[%clk 0:00:40]}  g3 {[%clk 0:00:31]} 29. Ne4 {[%clk 0:00:28]}  Bd4 {[%clk 0:00:26]} 30. Re2 {[%clk 0:00:21]}  Qxb2 {[%clk 0:00:21]} 31. Qd6+ {[%clk 0:00:19]}  Ka8 {[%clk 0:00:21]} 32. Qxd4 {[%clk 0:00:18]}  Qc1+ {[%clk 0:00:15]} 33. Qd1 {[%clk 0:00:18]}  Qh6 {[%clk 0:00:15]} 34. Nxg3 {[%clk 0:00:16]}  Qh2+ {[%clk 0:00:15]} 35. Kf1 {[%clk 0:00:16]}  Qh1+ {[%clk 0:00:16]} 36. Nxh1 {[%clk 0:00:14]}  Rxh1# {[%clk 0:00:17]} 0-1


[Site "https://www.chess.com"]

[Event "Late Titled Tuesday Blitz February 8 2022"]
[White "Li, Hui"]
[Black "Yang, Qindong"]
[WhiteFideId "15400310"]
[BlackFideId "8603758"]
[WhiteElo "1954"]
[BlackElo "2101"]
[Result "1-0"]
[Round "10"]
[TimeControl "180+1"]
[Date "2022.02.09"]
[WhiteClock "0:00:05"]
[BlackClock "0:01:11"]

1. e4 {[%clk 0:02:49]}  c5 {[%clk 0:02:37]} 2. Nf3 {[%clk 0:02:49]}  d6 {[%clk 0:02:37]} 3. d4 {[%clk 0:02:50]}  cxd4 {[%clk 0:02:38]} 4. Nxd4 {[%clk 0:02:51]}  Nf6 {[%clk 0:02:38]} 5. Nc3 {[%clk 0:02:51]}  a6 {[%clk 0:02:39]} 6. Be2 {[%clk 0:02:52]}  e5 {[%clk 0:02:39]} 7. Nb3 {[%clk 0:02:52]}  Be7 {[%clk 0:02:40]} 8. O-O {[%clk 0:02:53]}  O-O {[%clk 0:02:40]} 9. Be3 {[%clk 0:02:53]}  Be6 {[%clk 0:02:40]} 10. Qd2 {[%clk 0:02:54]}  Nbd7 {[%clk 0:02:40]} 11. a4 {[%clk 0:02:54]}  Nb6 {[%clk 0:02:33]} 12. a5 {[%clk 0:02:54]}  Nc4 {[%clk 0:02:33]} 13. Bxc4 {[%clk 0:02:54]}  Bxc4 {[%clk 0:02:34]} 14. Rfd1 {[%clk 0:02:55]}  Rc8 {[%clk 0:02:30]} 15. Nc1 {[%clk 0:02:55]}  d5 {[%clk 0:02:27]} 16. exd5 {[%clk 0:02:44]}  Bb4 {[%clk 0:02:25]} 17. Bb6 {[%clk 0:01:45]}  Qd7 {[%clk 0:02:08]} 18. Nd3 {[%clk 0:01:41]}  Bxc3 {[%clk 0:01:58]} 19. Qxc3 {[%clk 0:01:25]}  Nxd5 {[%clk 0:01:56]} 20. Nxe5 {[%clk 0:00:50]}  Nxc3 {[%clk 0:01:54]} 21. Rxd7 {[%clk 0:00:46]}  Ne2+ {[%clk 0:01:48]} 22. Kf1 {[%clk 0:00:34]}  Bb5 {[%clk 0:01:45]} 23. c4 {[%clk 0:00:32]}  Bxd7 {[%clk 0:01:42]} 24. Nxd7 {[%clk 0:00:30]}  Rfe8 {[%clk 0:01:40]} 25. Be3 {[%clk 0:00:30]}  f5 {[%clk 0:01:19]} 26. g3 {[%clk 0:00:20]}  Nd4 {[%clk 0:01:15]} 27. Bxd4 {[%clk 0:00:14]}  Rcd8 {[%clk 0:01:15]} 28. Nf6+ {[%clk 0:00:05]}  gxf6 {[%clk 0:01:15]} 29. Bxf6 {[%clk 0:00:05]}  Re4 {[%clk 0:01:15]} 30. Bxd8 {[%clk 0:00:01]}  Rxc4 {[%clk 0:01:13]} 31. Bg5 {[%clk 0:00:01]}  Kf7 {[%clk 0:01:13]} 32. Be3 {[%clk 0:00:02]}  Ke6 {[%clk 0:01:13]} 33. Rc1 {[%clk 0:00:03]}  Rb4 {[%clk 0:01:13]} 34. Rc2 {[%clk 0:00:03]}  Ke5 {[%clk 0:01:12]} 35. Ke2 {[%clk 0:00:03]}  Ke6 {[%clk 0:01:11]} 36. Kd2 {[%clk 0:00:03]}  Rb5 {[%clk 0:01:11]} 37. Ke2 {[%clk 0:00:03]}  Rd5 {[%clk 0:01:11]} 38. Rd2 {[%clk 0:00:03]}  Rb5 {[%clk 0:01:12]} 39. Rc2 {[%clk 0:00:02]}  Ke5 {[%clk 0:01:12]} 40. b4 {[%clk 0:00:02]}  Rxb4 {[%clk 0:01:11]} 41. Rc5+ {[%clk 0:00:02]}  Ke6 {[%clk 0:01:12]} 42. Rc3 {[%clk 0:00:02]}  Rb2+ {[%clk 0:01:12]} 43. Kf3 {[%clk 0:00:02]}  Rb5 {[%clk 0:01:13]} 44. Bb6 {[%clk 0:00:02]}  Kf6 {[%clk 0:01:12]} 45. Re3 {[%clk 0:00:03]}  h5 {[%clk 0:01:11]} 46. Re8 {[%clk 0:00:03]}  Rb3+ {[%clk 0:01:12]} 47. Kg2 {[%clk 0:00:03]}  h4 {[%clk 0:01:09]} 48. Rh8 {[%clk 0:00:03]}  hxg3 {[%clk 0:01:09]} 49. hxg3 {[%clk 0:00:04]}  Kg7 {[%clk 0:01:09]} 50. Rb8 {[%clk 0:00:04]}  Kf6 {[%clk 0:01:10]} 51. Rxb7 {[%clk 0:00:04]}  Rb5 {[%clk 0:01:10]} 52. Ra7 {[%clk 0:00:05]}  Ke5 {[%clk 0:01:10]} 53. Rxa6 {[%clk 0:00:05]}  Ke4 {[%clk 0:01:10]} 54. Ra8 {[%clk 0:00:05]}  Kd5 {[%clk 0:01:09]} 55. Re8 {[%clk 0:00:05]}  Kc6 {[%clk 0:01:10]} 56. Rc8+ {[%clk 0:00:05]}  Kb7 {[%clk 0:01:10]} 57. Rc7+ {[%clk 0:00:05]}  Kb8 {[%clk 0:01:10]} 58. Rf7 {[%clk 0:00:04]}  Kc8 {[%clk 0:01:10]} 59. Kf3 {[%clk 0:00:04]}  Kb8 {[%clk 0:01:11]} 60. Kf4 {[%clk 0:00:05]} 1-0


[Site "https://www.chess.com"]

[Event "Late Titled Tuesday Blitz February 8 2022"]
[White "Mikhalsky, Vladimir"]
[Black "Dobre, Claudiu-Cristian"]
[WhiteFideId "14144352"]
[BlackFideId "1211854"]
[WhiteElo "2248"]
[BlackElo "2207"]
[Result "0-1"]
[Round "10"]
[TimeControl "180+1"]
[Date "2022.02.09"]
[WhiteClock "0:00:26"]
[BlackClock "0:00:38"]

1. c4 {[%clk 0:03:00]}  Nf6 {[%clk 0:02:58]} 2. Nc3 {[%clk 0:02:58]}  c6 {[%clk 0:02:59]} 3. e4 {[%clk 0:02:56]}  d5 {[%clk 0:02:58]} 4. e5 {[%clk 0:02:56]}  d4 {[%clk 0:02:55]} 5. exf6 {[%clk 0:02:56]}  dxc3 {[%clk 0:02:56]} 6. bxc3 {[%clk 0:02:54]}  exf6 {[%clk 0:02:55]} 7. d4 {[%clk 0:02:54]}  c5 {[%clk 0:02:56]} 8. Nf3 {[%clk 0:02:53]}  Nc6 {[%clk 0:02:55]} 9. Be2 {[%clk 0:02:52]}  Bd6 {[%clk 0:02:55]} 10. O-O {[%clk 0:02:51]}  O-O {[%clk 0:02:55]} 11. Qd3 {[%clk 0:02:36]}  Qc7 {[%clk 0:02:44]} 12. h3 {[%clk 0:02:35]}  b6 {[%clk 0:02:41]} 13. Nh4 {[%clk 0:02:32]}  g6 {[%clk 0:02:38]} 14. Bf3 {[%clk 0:02:28]}  Bb7 {[%clk 0:02:32]} 15. Bh6 {[%clk 0:02:15]}  Rfe8 {[%clk 0:02:24]} 16. Bd5 {[%clk 0:02:13]}  Bf4 {[%clk 0:01:54]} 17. Bxf4 {[%clk 0:02:03]}  Qxf4 {[%clk 0:01:54]} 18. Nxg6 {[%clk 0:02:02]}  Qg5 {[%clk 0:01:55]} 19. Qf3 {[%clk 0:01:42]}  hxg6 {[%clk 0:01:36]} 20. Bxc6 {[%clk 0:01:41]}  Bxc6 {[%clk 0:01:37]} 21. Qxc6 {[%clk 0:01:41]}  Rac8 {[%clk 0:01:37]} 22. Qa4 {[%clk 0:01:35]}  cxd4 {[%clk 0:01:22]} 23. cxd4 {[%clk 0:01:34]}  Re7 {[%clk 0:01:22]} 24. Rfe1 {[%clk 0:01:30]}  Rec7 {[%clk 0:01:22]} 25. Re8+ {[%clk 0:01:22]}  Rxe8 {[%clk 0:01:20]} 26. Qxe8+ {[%clk 0:01:22]}  Kg7 {[%clk 0:01:21]} 27. d5 {[%clk 0:01:19]}  Qe5 {[%clk 0:00:58]} 28. Qxe5 {[%clk 0:01:12]}  fxe5 {[%clk 0:00:59]} 29. Rc1 {[%clk 0:01:08]}  e4 {[%clk 0:00:54]} 30. f4 {[%clk 0:01:04]}  exf3 {[%clk 0:00:54]} 31. gxf3 {[%clk 0:01:04]}  Kf6 {[%clk 0:00:55]} 32. Kf2 {[%clk 0:01:02]}  Ke5 {[%clk 0:00:55]} 33. Ke3 {[%clk 0:00:52]}  b5 {[%clk 0:00:55]} 34. f4+ {[%clk 0:00:52]}  Kd6 {[%clk 0:00:50]} 35. Kd4 {[%clk 0:00:51]}  Rc5 {[%clk 0:00:47]} 36. f5 {[%clk 0:00:42]}  bxc4 {[%clk 0:00:42]} 37. fxg6 {[%clk 0:00:38]}  Rxd5+ {[%clk 0:00:42]} 38. Ke4 {[%clk 0:00:33]}  fxg6 {[%clk 0:00:40]} 39. Rxc4 {[%clk 0:00:31]}  Rh5 {[%clk 0:00:37]} 40. Rc3 {[%clk 0:00:27]}  Rh4+ {[%clk 0:00:36]} 41. Kd3 {[%clk 0:00:24]}  Rxh3+ {[%clk 0:00:36]} 42. Kc4 {[%clk 0:00:24]}  Rxc3+ {[%clk 0:00:36]} 43. Kxc3 {[%clk 0:00:25]}  Kc5 {[%clk 0:00:36]} 44. Kd3 {[%clk 0:00:24]}  Kb4 {[%clk 0:00:36]} 45. Ke4 {[%clk 0:00:25]}  Ka3 {[%clk 0:00:36]} 46. Kf4 {[%clk 0:00:25]}  Kxa2 {[%clk 0:00:36]} 47. Kg5 {[%clk 0:00:25]}  a5 {[%clk 0:00:37]} 48. Kxg6 {[%clk 0:00:26]}  a4 {[%clk 0:00:37]} 49. Kf5 {[%clk 0:00:26]}  a3 {[%clk 0:00:38]} 50. Ke4 {[%clk 0:00:26]}  Kb3 {[%clk 0:00:38]} 51. Kd3 {[%clk 0:00:26]}  a2 {[%clk 0:00:38]} 52. Kd2 {[%clk 0:00:26]}  a1=Q {[%clk 0:00:38]} 0-1


[Site "https://www.chess.com"]

[Event "Late Titled Tuesday Blitz February 8 2022"]
[White "Milosevic, Milos"]
[Black "Nikologorsky, Matfei"]
[WhiteFideId "964875"]
[BlackFideId "24102474"]
[WhiteElo "2198"]
[BlackElo "2231"]
[Result "0-1"]
[Round "10"]
[TimeControl "180+1"]
[Date "2022.02.09"]
[WhiteClock "0:01:04"]
[BlackClock "0:00:41"]

1. f4 {[%clk 0:03:00]}  e5 {[%clk 0:02:57]} 2. e4 {[%clk 0:03:00]}  exf4 {[%clk 0:02:56]} 3. d4 {[%clk 0:03:00]}  d5 {[%clk 0:02:53]} 4. e5 {[%clk 0:02:58]}  c5 {[%clk 0:02:49]} 5. Bxf4 {[%clk 0:02:55]}  cxd4 {[%clk 0:02:48]} 6. Nf3 {[%clk 0:02:54]}  Bb4+ {[%clk 0:02:44]} 7. Nbd2 {[%clk 0:02:52]}  Nc6 {[%clk 0:02:43]} 8. Bd3 {[%clk 0:02:50]}  Nge7 {[%clk 0:02:39]} 9. O-O {[%clk 0:02:49]}  Bf5 {[%clk 0:02:33]} 10. Bxf5 {[%clk 0:02:39]}  Nxf5 {[%clk 0:02:32]} 11. e6 {[%clk 0:02:19]}  fxe6 {[%clk 0:01:59]} 12. Ng5 {[%clk 0:02:17]}  Qe7 {[%clk 0:01:54]} 13. Re1 {[%clk 0:02:11]}  Ne3 {[%clk 0:01:50]} 14. Qh5+ {[%clk 0:02:04]}  g6 {[%clk 0:01:46]} 15. Qh3 {[%clk 0:02:03]}  Bxd2 {[%clk 0:01:32]} 16. Re2 {[%clk 0:01:56]}  e5 {[%clk 0:01:20]} 17. Ne6 {[%clk 0:01:39]}  exf4 {[%clk 0:01:14]} 18. Rxd2 {[%clk 0:01:38]}  Nd8 {[%clk 0:00:58]} 19. Nxf4 {[%clk 0:01:36]}  O-O {[%clk 0:00:56]} 20. Rxd4 {[%clk 0:01:20]}  Nxc2 {[%clk 0:00:53]} 21. Nxd5 {[%clk 0:01:19]}  Qe5 {[%clk 0:00:44]} 22. Rh4 {[%clk 0:01:08]}  Nxa1 {[%clk 0:00:41]} 23. Rxh7 {[%clk 0:01:04]}  Qe1# {[%clk 0:00:41]} 0-1


[Site "https://www.chess.com"]

[Event "Late Titled Tuesday Blitz February 8 2022"]
[White "Mirzoev, Azer"]
[Black "Borisova, Ekaterina"]
[WhiteFideId "13400304"]
[BlackFideId "34124184"]
[WhiteElo "2525"]
[BlackElo "2034"]
[Result "1-0"]
[Round "10"]
[TimeControl "180+1"]
[Date "2022.02.09"]
[WhiteClock "0:01:43"]
[BlackClock "0:00:01"]

1. b4 {[%clk 0:03:00]}  e6 {[%clk 0:02:50]} 2. Bb2 {[%clk 0:02:58]}  d5 {[%clk 0:02:49]} 3. Nf3 {[%clk 0:02:56]}  Nf6 {[%clk 0:02:49]} 4. b5 {[%clk 0:02:56]}  a6 {[%clk 0:02:49]} 5. a4 {[%clk 0:02:55]}  axb5 {[%clk 0:02:50]} 6. axb5 {[%clk 0:02:56]}  Rxa1 {[%clk 0:02:50]} 7. Bxa1 {[%clk 0:02:56]}  c6 {[%clk 0:02:48]} 8. e3 {[%clk 0:02:55]}  Bd6 {[%clk 0:02:48]} 9. c4 {[%clk 0:02:53]}  O-O {[%clk 0:02:44]} 10. Nc3 {[%clk 0:02:51]}  Nbd7 {[%clk 0:02:41]} 11. Be2 {[%clk 0:02:51]}  dxc4 {[%clk 0:02:28]} 12. Bxc4 {[%clk 0:02:50]}  Nb6 {[%clk 0:02:26]} 13. Be2 {[%clk 0:02:49]}  Nbd5 {[%clk 0:02:24]} 14. O-O {[%clk 0:02:48]}  Bd7 {[%clk 0:02:22]} 15. Qb1 {[%clk 0:02:45]}  Nxc3 {[%clk 0:02:17]} 16. Bxc3 {[%clk 0:02:45]}  Nd5 {[%clk 0:02:14]} 17. Ba1 {[%clk 0:02:40]}  cxb5 {[%clk 0:02:11]} 18. Bxb5 {[%clk 0:02:39]}  Bxb5 {[%clk 0:01:53]} 19. Qxb5 {[%clk 0:02:38]}  Qc7 {[%clk 0:01:49]} 20. g3 {[%clk 0:02:30]}  Ra8 {[%clk 0:01:45]} 21. Rb1 {[%clk 0:02:28]}  h6 {[%clk 0:01:38]} 22. Kg2 {[%clk 0:02:28]}  Ra2 {[%clk 0:01:35]} 23. Bd4 {[%clk 0:02:23]}  Ra6 {[%clk 0:00:25]} 24. Qxb7 {[%clk 0:02:21]}  Qxb7 {[%clk 0:00:25]} 25. Rxb7 {[%clk 0:02:21]}  Ne7 {[%clk 0:00:25]} 26. Be5 {[%clk 0:02:15]}  Nf5 {[%clk 0:00:20]} 27. Rd7 {[%clk 0:02:07]}  Bxe5 {[%clk 0:00:09]} 28. Nxe5 {[%clk 0:02:07]}  f6 {[%clk 0:00:09]} 29. Ng6 {[%clk 0:02:03]}  Ra2 {[%clk 0:00:09]} 30. g4 {[%clk 0:02:02]}  Kh7 {[%clk 0:00:03]} 31. gxf5 {[%clk 0:02:01]}  exf5 {[%clk 0:00:02]} 32. Nh4 {[%clk 0:02:01]}  f4 {[%clk 0:00:01]} 33. exf4 {[%clk 0:02:01]}  h5 {[%clk 0:00:02]} 34. d3 {[%clk 0:01:57]}  Kh6 {[%clk 0:00:02]} 35. Nf5+ {[%clk 0:01:57]}  Kg6 {[%clk 0:00:02]} 36. Nxg7 {[%clk 0:01:58]}  h4 {[%clk 0:00:02]} 37. h3 {[%clk 0:01:57]}  Rd2 {[%clk 0:00:02]} 38. Kf3 {[%clk 0:01:57]}  Rd1 {[%clk 0:00:02]} 39. f5+ {[%clk 0:01:57]}  Kg5 {[%clk 0:00:01]} 40. Rd5 {[%clk 0:01:55]}  Rh1 {[%clk 0:00:01]} 41. Ne6+ {[%clk 0:01:55]}  Kh6 {[%clk 0:00:01]} 42. Kg2 {[%clk 0:01:56]}  Rd1 {[%clk 0:00:02]} 43. Rd8 {[%clk 0:01:52]}  Kh7 {[%clk 0:00:02]} 44. Nf4 {[%clk 0:01:49]}  Rd2 {[%clk 0:00:02]} 45. Ng6 {[%clk 0:01:48]}  Rd1 {[%clk 0:00:03]} 46. Nxh4 {[%clk 0:01:48]}  Kh6 {[%clk 0:00:03]} 47. Nf3 {[%clk 0:01:47]}  Ra1 {[%clk 0:00:03]} 48. h4 {[%clk 0:01:47]}  Ra3 {[%clk 0:00:03]} 49. Rd6 {[%clk 0:01:47]}  Kh5 {[%clk 0:00:02]} 50. Kg3 {[%clk 0:01:45]}  Ra4 {[%clk 0:00:02]} 51. Rd8 {[%clk 0:01:44]}  Rg4+ {[%clk 0:00:02]} 52. Kh3 {[%clk 0:01:44]}  Rf4 {[%clk 0:00:01]} 53. Rh8# {[%clk 0:01:43]} 1-0


[Site "https://www.chess.com"]

[Event "Late Titled Tuesday Blitz February 8 2022"]
[White "Mladenovic, Stefan"]
[Black "Mekhitarian, Krikor Sevag"]
[WhiteFideId "942227"]
[BlackFideId "2107660"]
[WhiteElo "2355"]
[BlackElo "2598"]
[Result "1-0"]
[Round "10"]
[TimeControl "180+1"]
[Date "2022.02.08"]
[WhiteClock "0:00:26"]
[BlackClock "0:00:05"]

1. d4 {[%clk 0:03:00]}  Nf6 {[%clk 0:02:59]} 2. Nf3 {[%clk 0:02:59]}  g6 {[%clk 0:03:00]} 3. Bf4 {[%clk 0:02:56]}  Bg7 {[%clk 0:03:00]} 4. e3 {[%clk 0:02:56]}  d6 {[%clk 0:03:00]} 5. Be2 {[%clk 0:02:53]}  O-O {[%clk 0:02:56]} 6. O-O {[%clk 0:02:53]}  c5 {[%clk 0:02:51]} 7. c3 {[%clk 0:02:52]}  Nh5 {[%clk 0:02:51]} 8. Bg5 {[%clk 0:02:52]}  h6 {[%clk 0:02:51]} 9. Bh4 {[%clk 0:02:52]}  g5 {[%clk 0:02:52]} 10. Nfd2 {[%clk 0:02:53]}  cxd4 {[%clk 0:02:52]} 11. cxd4 {[%clk 0:02:52]}  Nf4 {[%clk 0:02:51]} 12. Bg3 {[%clk 0:02:51]}  Nxe2+ {[%clk 0:02:50]} 13. Qxe2 {[%clk 0:02:51]}  Nc6 {[%clk 0:02:18]} 14. Nc3 {[%clk 0:02:51]}  e5 {[%clk 0:02:11]} 15. dxe5 {[%clk 0:02:48]}  dxe5 {[%clk 0:02:11]} 16. Rad1 {[%clk 0:02:44]}  f5 {[%clk 0:02:09]} 17. f4 {[%clk 0:02:40]}  exf4 {[%clk 0:01:58]} 18. exf4 {[%clk 0:02:41]}  g4 {[%clk 0:01:58]} 19. Nc4 {[%clk 0:02:39]}  Qf6 {[%clk 0:01:53]} 20. Nd5 {[%clk 0:02:37]}  Qf7 {[%clk 0:01:48]} 21. Nd6 {[%clk 0:02:23]}  Qe6 {[%clk 0:01:30]} 22. Qxe6+ {[%clk 0:02:14]}  Bxe6 {[%clk 0:01:31]} 23. Nc7 {[%clk 0:02:14]}  Bxa2 {[%clk 0:01:31]} 24. Nxa8 {[%clk 0:02:13]}  Rxa8 {[%clk 0:01:32]} 25. Nxb7 {[%clk 0:02:11]}  Bxb2 {[%clk 0:01:28]} 26. Rd2 {[%clk 0:02:07]}  Bd4+ {[%clk 0:01:28]} 27. Bf2 {[%clk 0:02:07]}  Bxf2+ {[%clk 0:01:18]} 28. Rfxf2 {[%clk 0:02:08]}  Bf7 {[%clk 0:01:11]} 29. Rd6 {[%clk 0:02:08]}  Nb4 {[%clk 0:01:06]} 30. Rd8+ {[%clk 0:01:59]}  Rxd8 {[%clk 0:01:03]} 31. Nxd8 {[%clk 0:02:00]}  Bd5 {[%clk 0:01:03]} 32. Re2 {[%clk 0:01:49]}  a5 {[%clk 0:01:00]} 33. Ne6 {[%clk 0:01:48]}  a4 {[%clk 0:01:00]} 34. Nc7 {[%clk 0:01:31]}  Bc4 {[%clk 0:00:56]} 35. Rb2 {[%clk 0:01:29]}  Nd3 {[%clk 0:00:36]} 36. Rb8+ {[%clk 0:01:11]}  Kf7 {[%clk 0:00:36]} 37. Nb5 {[%clk 0:01:12]}  Ke7 {[%clk 0:00:32]} 38. Nc3 {[%clk 0:01:06]}  Bb3 {[%clk 0:00:30]} 39. g3 {[%clk 0:01:04]}  Nb2 {[%clk 0:00:19]} 40. Nxa4 {[%clk 0:00:58]}  Nxa4 {[%clk 0:00:16]} 41. Rxb3 {[%clk 0:00:58]}  Nc5 {[%clk 0:00:17]} 42. Rb6 {[%clk 0:00:57]}  Ne6 {[%clk 0:00:16]} 43. Kf2 {[%clk 0:00:56]}  h5 {[%clk 0:00:12]} 44. Ke3 {[%clk 0:00:53]}  Kf7 {[%clk 0:00:12]} 45. Kd3 {[%clk 0:00:45]}  h4 {[%clk 0:00:09]} 46. Kc4 {[%clk 0:00:34]}  hxg3 {[%clk 0:00:02]} 47. hxg3 {[%clk 0:00:35]}  Ng7 {[%clk 0:00:03]} 48. Kd5 {[%clk 0:00:34]}  Nh5 {[%clk 0:00:03]} 49. Rb3 {[%clk 0:00:34]}  Kf6 {[%clk 0:00:04]} 50. Ra3 {[%clk 0:00:33]}  Ng7 {[%clk 0:00:03]} 51. Ra6+ {[%clk 0:00:32]}  Kf7 {[%clk 0:00:03]} 52. Ke5 {[%clk 0:00:32]}  Nh5 {[%clk 0:00:04]} 53. Ra3 {[%clk 0:00:31]}  Kg6 {[%clk 0:00:03]} 54. Rb3 {[%clk 0:00:30]}  Ng7 {[%clk 0:00:03]} 55. Rb6+ {[%clk 0:00:30]}  Kf7 {[%clk 0:00:03]} 56. Rf6+ {[%clk 0:00:29]}  Kg8 {[%clk 0:00:03]} 57. Rxf5 {[%clk 0:00:29]}  Kh7 {[%clk 0:00:03]} 58. Rg5 {[%clk 0:00:27]}  Ne8 {[%clk 0:00:03]} 59. Rxg4 {[%clk 0:00:26]}  Kh6 {[%clk 0:00:04]} 60. Rg8 {[%clk 0:00:26]}  Nc7 {[%clk 0:00:05]} 1-0


[Site "https://www.chess.com"]

[Event "Late Titled Tuesday Blitz February 8 2022"]
[White "Musovic, Armin"]
[Black "Garagulya, Konstantin"]
[WhiteFideId "939935"]
[BlackFideId "4128931"]
[WhiteElo "2250"]
[BlackElo "2329"]
[Result "1-0"]
[Round "10"]
[TimeControl "180+1"]
[Date "2022.02.09"]
[WhiteClock "0:01:58"]
[BlackClock "0:00:56"]

1. a3 {[%clk 0:03:00]}  Nf6 {[%clk 0:02:49]} 2. Nc3 {[%clk 0:03:01]}  e5 {[%clk 0:02:49]} 3. d4 {[%clk 0:03:01]}  exd4 {[%clk 0:02:48]} 4. Qxd4 {[%clk 0:03:02]}  Nc6 {[%clk 0:02:48]} 5. Qa4 {[%clk 0:03:03]}  h6 {[%clk 0:02:43]} 6. Nf3 {[%clk 0:03:02]}  Bc5 {[%clk 0:02:43]} 7. Bf4 {[%clk 0:03:02]}  O-O {[%clk 0:02:42]} 8. e3 {[%clk 0:03:00]}  a6 {[%clk 0:02:40]} 9. O-O-O {[%clk 0:02:59]}  d6 {[%clk 0:02:36]} 10. Bd3 {[%clk 0:02:55]}  Bd7 {[%clk 0:02:33]} 11. Ne4 {[%clk 0:02:55]}  Nd4 {[%clk 0:02:01]} 12. Nxf6+ {[%clk 0:02:49]}  Qxf6 {[%clk 0:02:01]} 13. Qxd7 {[%clk 0:02:47]}  Nxf3 {[%clk 0:01:51]} 14. gxf3 {[%clk 0:02:46]}  g5 {[%clk 0:01:43]} 15. Bg3 {[%clk 0:02:42]}  Qxf3 {[%clk 0:01:38]} 16. Qf5 {[%clk 0:02:31]}  Qxf5 {[%clk 0:01:37]} 17. Bxf5 {[%clk 0:02:32]}  Kg7 {[%clk 0:01:35]} 18. h4 {[%clk 0:02:31]}  f6 {[%clk 0:01:34]} 19. hxg5 {[%clk 0:02:26]}  fxg5 {[%clk 0:01:35]} 20. e4 {[%clk 0:02:27]}  Rae8 {[%clk 0:01:31]} 21. b4 {[%clk 0:02:26]}  Bb6 {[%clk 0:01:28]} 22. Rh5 {[%clk 0:02:22]}  a5 {[%clk 0:01:25]} 23. Rdh1 {[%clk 0:02:22]}  Rf6 {[%clk 0:01:06]} 24. bxa5 {[%clk 0:02:13]}  Bxa5 {[%clk 0:01:01]} 25. f4 {[%clk 0:02:12]}  gxf4 {[%clk 0:00:56]} 26. Bxf4 {[%clk 0:02:12]}  Rh8 {[%clk 0:00:56]} 27. e5 {[%clk 0:01:58]} 1-0


[Site "https://www.chess.com"]